[Event "*** Titled Tuesday Blitz"]
[Site "Chess.com"]
[Date "2019.10.01"]
[Round "1"]
[White "Bad4life"]
[Black "Leonid_Starozhilov"]
[Result "1-0"]
[WhiteElo "2346"]
[BlackElo "2676"]
[TimeControl "180+2"]
[EndTime "13:06:47 PDT"]
[Termination "Bad4life won on time"]

1. e4 {[%clk 0:02:56.4]} 1... g6 {[%clk 0:03:00.8]} 2. d4 {[%clk 0:02:57.5]}
2... Bg7 {[%clk 0:02:59.5]} 3. Nc3 {[%clk 0:02:59]} 3... d6 {[%clk 0:03:00.5]}
4. f4 {[%clk 0:02:59.9]} 4... Nf6 {[%clk 0:03:01.7]} 5. Nf3 {[%clk 0:03:01]}
5... O-O {[%clk 0:03:02.7]} 6. e5 {[%clk 0:03:02.6]} 6... dxe5 {[%clk
0:03:03.4]} 7. fxe5 {[%clk 0:03:04.5]} 7... Nd5 {[%clk 0:03:04.5]} 8. Bc4 {[%clk
0:03:06.1]} 8... Nxc3 {[%clk 0:03:04.9]} 9. bxc3 {[%clk 0:03:08]} 9... c5 {[%clk
0:03:06.6]} 10. O-O {[%clk 0:03:09.5]} 10... Bg4 {[%clk 0:03:08.2]} 11. h3
{[%clk 0:03:09.2]} 11... Bxf3 {[%clk 0:03:09.6]} 12. Qxf3 {[%clk 0:03:11.1]}
12... Nc6 {[%clk 0:03:11.3]} 13. Bxf7+ {[%clk 0:03:06.9]} 13... Kh8 {[%clk
0:03:11.8]} 14. e6 {[%clk 0:03:02.7]} 14... cxd4 {[%clk 0:03:07.7]} 15. Bf4
{[%clk 0:02:59.3]} 15... Qb6 {[%clk 0:03:02.1]} 16. Kh1 {[%clk 0:02:54.3]} 16...
Qc5 {[%clk 0:02:31]} 17. cxd4 {[%clk 0:02:41.4]} 17... Nxd4 {[%clk 0:02:30.4]}
18. Qxb7 {[%clk 0:02:38.1]} 18... Nxe6 {[%clk 0:02:11.7]} 19. Bxe6 {[%clk
0:02:34]} 19... Qxc2 {[%clk 0:01:28.6]} 20. Bb3 {[%clk 0:02:20.5]} 20... Qe2
{[%clk 0:01:02.4]} 21. Rae1 {[%clk 0:02:17.8]} 21... Qh5 {[%clk 0:01:01.9]} 22.
Bd5 {[%clk 0:02:05.2]} 22... Rad8 {[%clk 0:00:56.1]} 23. Bf3 {[%clk 0:02:05.7]}
23... Qh4 {[%clk 0:00:46.2]} 24. Bh2 {[%clk 0:01:55.6]} 24... Bf6 {[%clk
0:00:38.8]} 25. Qxa7 {[%clk 0:01:55.2]} 25... Rd2 {[%clk 0:00:34.9]} 26. a4
{[%clk 0:01:47]} 26... Rc8 {[%clk 0:00:27.6]} 27. Re4 {[%clk 0:01:41.2]} 27...
Qg5 {[%clk 0:00:24.4]} 28. Bf4 {[%clk 0:01:35.6]} 28... Qd5 {[%clk 0:00:08.8]}
29. Rxe7 {[%clk 0:01:31.3]} 29... Bxe7 {[%clk 0:00:03.9]} 30. Bxd5 {[%clk
0:01:30.8]} 1-0

[Event "*** Titled Tuesday Blitz"]
[Site "Chess.com"]
[Date "2019.10.01"]
[Round "1"]
[White "LazarusChess92"]
[Black "Perecke"]
[Result "1-0"]
[WhiteElo "2546"]
[BlackElo "2110"]
[TimeControl "180+2"]
[EndTime "13:06:48 PDT"]
[Termination "LazarusChess92 won by checkmate"]

1. d4 {[%clk 0:03:01.9]} 1... d5 {[%clk 0:03:01]} 2. c4 {[%clk 0:03:03.1]} 2...
e6 {[%clk 0:03:01.9]} 3. Nf3 {[%clk 0:03:03]} 3... Nf6 {[%clk 0:03:02.2]} 4. g3
{[%clk 0:03:04]} 4... dxc4 {[%clk 0:03:03.7]} 5. Bg2 {[%clk 0:03:04.9]} 5... Nc6
{[%clk 0:03:03.6]} 6. O-O {[%clk 0:03:03.9]} 6... Rb8 {[%clk 0:03:04.9]} 7. a4
{[%clk 0:03:02.7]} 7... a6 {[%clk 0:02:56.5]} 8. a5 {[%clk 0:03:02.8]} 8... Bb4
{[%clk 0:02:52]} 9. Bd2 {[%clk 0:03:03.1]} 9... Bxd2 {[%clk 0:02:49.9]} 10. Qxd2
{[%clk 0:03:05]} 10... O-O {[%clk 0:02:47.4]} 11. Na3 {[%clk 0:02:57.8]} 11...
Ne4 {[%clk 0:02:18.6]} 12. Qc2 {[%clk 0:02:57.6]} 12... Nd6 {[%clk 0:01:56.2]}
13. Nxc4 {[%clk 0:02:56.6]} 13... Nxc4 {[%clk 0:01:55.8]} 14. Qxc4 {[%clk
0:02:58.5]} 14... Qd5 {[%clk 0:01:56.8]} 15. Rfc1 {[%clk 0:02:53.9]} 15... Qxc4
{[%clk 0:01:53.1]} 16. Rxc4 {[%clk 0:02:54.2]} 16... Bd7 {[%clk 0:01:53.6]} 17.
e3 {[%clk 0:02:48.4]} 17... Rfc8 {[%clk 0:01:52.5]} 18. Nd2 {[%clk 0:02:37]}
18... Na7 {[%clk 0:01:13]} 19. Nb3 {[%clk 0:02:17.2]} 19... Bc6 {[%clk
0:01:00.2]} 20. Bxc6 {[%clk 0:02:09.4]} 20... Nxc6 {[%clk 0:01:02.1]} 21. Nc5
{[%clk 0:02:10.2]} 21... Ne7 {[%clk 0:00:33.7]} 22. Rac1 {[%clk 0:02:08.9]}
22... Rd8 {[%clk 0:00:08.8]} 23. Nb3 {[%clk 0:01:57.2]} 23... c6 {[%clk
0:00:08.1]} 24. Kf1 {[%clk 0:01:53.1]} 24... Nd5 {[%clk 0:00:08.8]} 25. Ke2
{[%clk 0:01:53.2]} 25... Kf8 {[%clk 0:00:09.9]} 26. Nc5 {[%clk 0:01:50.4]} 26...
Ke7 {[%clk 0:00:06.6]} 27. Nd3 {[%clk 0:01:50.3]} 27... Kd6 {[%clk 0:00:06]} 28.
Ne5 {[%clk 0:01:50.9]} 28... Ke7 {[%clk 0:00:06.5]} 29. g4 {[%clk 0:01:49.3]}
29... f6 {[%clk 0:00:07.8]} 30. Nd3 {[%clk 0:01:50.1]} 30... Kd6 {[%clk
0:00:08.7]} 31. h4 {[%clk 0:01:50.5]} 31... g6 {[%clk 0:00:07.8]} 32. g5 {[%clk
0:01:50.2]} 32... fxg5 {[%clk 0:00:07.3]} 33. hxg5 {[%clk 0:01:52.1]} 33... Rd7
{[%clk 0:00:06.8]} 34. Ne5 {[%clk 0:01:52.7]} 34... Re7 {[%clk 0:00:05.6]} 35.
Rxc6+ {[%clk 0:01:45.9]} 35... bxc6 {[%clk 0:00:06.2]} 36. Rxc6# {[%clk
0:01:47.8]} 1-0

[Event "*** Titled Tuesday Blitz"]
[Site "Chess.com"]
[Date "2019.10.01"]
[Round "1"]
[White "Korchmar_Vasiliy"]
[Black "benhal"]
[Result "1-0"]
[WhiteElo "2668"]
[BlackElo "2309"]
[TimeControl "180+2"]
[EndTime "13:06:49 PDT"]
[Termination "Korchmar_Vasiliy won by resignation"]

1. d4 {[%clk 0:03:00.7]} 1... d5 {[%clk 0:03:00.7]} 2. c4 {[%clk 0:03:01.6]}
2... e6 {[%clk 0:03:01.9]} 3. Nf3 {[%clk 0:03:00.4]} 3... Nf6 {[%clk 0:02:59.4]}
4. Nc3 {[%clk 0:03:01.6]} 4... c6 {[%clk 0:03:00.1]} 5. Bf4 {[%clk 0:03:01]}
5... dxc4 {[%clk 0:02:57.9]} 6. e4 {[%clk 0:03:01.7]} 6... b5 {[%clk 0:02:58.7]}
7. Be2 {[%clk 0:02:59.4]} 7... b4 {[%clk 0:02:53.4]} 8. Na4 {[%clk 0:02:59.7]}
8... Nxe4 {[%clk 0:02:54.1]} 9. Bxc4 {[%clk 0:03:00]} 9... Be7 {[%clk
0:02:53.4]} 10. O-O {[%clk 0:03:00.6]} 10... O-O {[%clk 0:02:53.4]} 11. Ne5
{[%clk 0:03:00.4]} 11... Bb7 {[%clk 0:02:43.5]} 12. Bd3 {[%clk 0:02:50.9]} 12...
Nf6 {[%clk 0:02:42.7]} 13. Rc1 {[%clk 0:02:45.1]} 13... c5 {[%clk 0:02:18]} 14.
Nxc5 {[%clk 0:02:40.7]} 14... Bd5 {[%clk 0:02:17.4]} 15. Bb1 {[%clk 0:02:25.7]}
15... a5 {[%clk 0:02:09.5]} 16. Qd3 {[%clk 0:02:26.3]} 16... g6 {[%clk
0:02:10.2]} 17. Rfe1 {[%clk 0:02:21.3]} 17... Nc6 {[%clk 0:01:54.8]} 18. Nxc6
{[%clk 0:02:06.9]} 18... Bxc6 {[%clk 0:01:56.7]} 19. Nxe6 {[%clk 0:02:08.5]}
19... Qd5 {[%clk 0:01:56.6]} 20. Rxc6 {[%clk 0:02:08.4]} 20... Qxc6 {[%clk
0:01:55.6]} 21. Nxf8 {[%clk 0:02:09.8]} 21... Bxf8 {[%clk 0:01:56.4]} 22. Be5
{[%clk 0:01:45.4]} 22... Ng4 {[%clk 0:01:56]} 23. Qg3 {[%clk 0:01:30.2]} 23...
Nxe5 {[%clk 0:01:55.7]} 24. Be4 {[%clk 0:01:31.8]} 24... Nf3+ {[%clk 0:01:51.8]}
25. Qxf3 {[%clk 0:01:31.5]} 25... Re8 {[%clk 0:01:52.3]} 26. g3 {[%clk
0:01:10.9]} 26... Qc4 {[%clk 0:01:32.4]} 27. Kg2 {[%clk 0:01:12]} 27... Rd8
{[%clk 0:01:22.5]} 28. d5 {[%clk 0:00:55.9]} 28... Qxa2 {[%clk 0:01:23]} 29. Qf6
{[%clk 0:00:53.8]} 29... Rd6 {[%clk 0:01:23.5]} 30. Qe5 {[%clk 0:00:52.3]} 30...
a4 {[%clk 0:01:18.9]} 31. Rc1 {[%clk 0:00:52.6]} 31... Rd8 {[%clk 0:01:13.5]}
32. Qf6 {[%clk 0:00:48.2]} 32... Rb8 {[%clk 0:01:12.7]} 33. Rc7 {[%clk
0:00:47.7]} 1-0

[Event "*** Titled Tuesday Blitz"]
[Site "Chess.com"]
[Date "2019.10.01"]
[Round "1"]
[White "chesstatour"]
[Black "FMJoseHerrera"]
[Result "0-1"]
[WhiteElo "2031"]
[BlackElo "2519"]
[TimeControl "180+2"]
[EndTime "13:06:52 PDT"]
[Termination "FMJoseHerrera won on time"]

1. c4 {[%clk 0:03:01.9]} 1... Nf6 {[%clk 0:02:58.7]} 2. Nc3 {[%clk 0:03:01.4]}
2... c5 {[%clk 0:02:54.6]} 3. Nf3 {[%clk 0:03:01.6]} 3... b6 {[%clk 0:02:55.3]}
4. d4 {[%clk 0:03:02.4]} 4... cxd4 {[%clk 0:02:56]} 5. Nxd4 {[%clk 0:03:03]}
5... Bb7 {[%clk 0:02:57.2]} 6. Bg5 {[%clk 0:02:57.5]} 6... e6 {[%clk 0:02:57]}
7. Qc2 {[%clk 0:02:52.5]} 7... Be7 {[%clk 0:02:57.2]} 8. O-O-O {[%clk
0:02:42.9]} 8... a6 {[%clk 0:02:42]} 9. Kb1 {[%clk 0:02:34.6]} 9... d6 {[%clk
0:02:40.9]} 10. f3 {[%clk 0:02:33.8]} 10... Nbd7 {[%clk 0:02:41.3]} 11. e4
{[%clk 0:02:33.3]} 11... Qc7 {[%clk 0:02:42.4]} 12. Be2 {[%clk 0:02:21.4]} 12...
Rc8 {[%clk 0:02:41.2]} 13. Rhe1 {[%clk 0:02:18]} 13... Ne5 {[%clk 0:02:40.1]}
14. Bxf6 {[%clk 0:02:09.1]} 14... gxf6 {[%clk 0:02:40.5]} 15. Rc1 {[%clk
0:01:22.8]} 15... Nxc4 {[%clk 0:02:33.7]} 16. Bxc4 {[%clk 0:01:23.7]} 16... Qxc4
{[%clk 0:02:35.6]} 17. Qd2 {[%clk 0:01:25.1]} 17... Qb4 {[%clk 0:02:22.9]} 18.
a3 {[%clk 0:01:16.9]} 18... Qa5 {[%clk 0:02:24.1]} 19. Nb3 {[%clk 0:01:00.3]}
19... Qg5 {[%clk 0:02:21.3]} 20. f4 {[%clk 0:00:58.6]} 20... Qh5 {[%clk
0:02:14.8]} 21. f5 {[%clk 0:00:24.4]} 21... Qg5 {[%clk 0:02:00]} 22. Qf2 {[%clk
0:00:13.9]} 22... Rg8 {[%clk 0:01:57.5]} 23. Qxb6 {[%clk 0:00:11.2]} 23... Bc6
{[%clk 0:01:47.5]} 24. Nd4 {[%clk 0:00:08.4]} 24... Bd7 {[%clk 0:01:47.8]} 25.
fxe6 {[%clk 0:00:05.1]} 25... fxe6 {[%clk 0:01:49.7]} 26. Qxa6 {[%clk
0:00:03.8]} 26... Qxg2 {[%clk 0:01:50.3]} 27. Ndb5 {[%clk 0:00:04]} 27... Rc6
{[%clk 0:01:49.6]} 28. Qa8+ {[%clk 0:00:04.4]} 28... Kf7 {[%clk 0:01:51]} 29.
Qa7 {[%clk 0:00:05.5]} 29... Rd8 {[%clk 0:01:47.3]} 30. Rf1 {[%clk 0:00:04.6]}
30... Rc5 {[%clk 0:01:46.5]} 31. Qa6 {[%clk 0:00:04.4]} 31... Rb8 {[%clk
0:01:41.7]} 32. a4 {[%clk 0:00:04.8]} 32... Bxb5 {[%clk 0:01:39.9]} 33. Nxb5
{[%clk 0:00:05]} 33... Qxe4+ {[%clk 0:01:40.3]} 34. Ka1 {[%clk 0:00:05.2]} 34...
Rcxb5 {[%clk 0:01:38.8]} 0-1

[Event "*** Titled Tuesday Blitz"]
[Site "Chess.com"]
[Date "2019.10.01"]
[Round "1"]
[White "Natalya_Buksa"]
[Black "BlueWizzard"]
[Result "0-1"]
[WhiteElo "2437"]
[BlackElo "2839"]
[TimeControl "180+2"]
[EndTime "13:07:00 PDT"]
[Termination "BlueWizzard won by checkmate"]

1. e4 {[%clk 0:03:00.6]} 1... c5 {[%clk 0:03:00.6]} 2. Nf3 {[%clk 0:03:01.4]}
2... g6 {[%clk 0:03:01.2]} 3. c3 {[%clk 0:02:59.2]} 3... Nf6 {[%clk 0:03:01.5]}
4. d4 {[%clk 0:03:01.1]} 4... Nxe4 {[%clk 0:03:00.8]} 5. Bd3 {[%clk 0:02:59.5]}
5... d5 {[%clk 0:02:59.8]} 6. O-O {[%clk 0:02:59.6]} 6... Bg7 {[%clk 0:02:59.4]}
7. Re1 {[%clk 0:02:42.6]} 7... O-O {[%clk 0:02:55.5]} 8. Bxe4 {[%clk 0:02:10.3]}
8... dxe4 {[%clk 0:02:57.4]} 9. Rxe4 {[%clk 0:02:11.4]} 9... cxd4 {[%clk
0:02:39.5]} 10. cxd4 {[%clk 0:02:09.5]} 10... Nc6 {[%clk 0:02:25.9]} 11. Bg5
{[%clk 0:02:06.2]} 11... h6 {[%clk 0:02:23.7]} 12. Bh4 {[%clk 0:02:03.1]} 12...
g5 {[%clk 0:02:18.8]} 13. Bg3 {[%clk 0:01:45.3]} 13... f5 {[%clk 0:02:19.5]} 14.
Re1 {[%clk 0:01:33.8]} 14... f4 {[%clk 0:02:20.7]} 15. Bh4 {[%clk 0:01:30.4]}
15... gxh4 {[%clk 0:02:14.7]} 16. Nc3 {[%clk 0:01:30.8]} 16... Nxd4 {[%clk
0:02:14.1]} 17. Nxd4 {[%clk 0:01:31.4]} 17... Qxd4 {[%clk 0:02:14.8]} 18. Qh5
{[%clk 0:01:32.4]} 18... Bf5 {[%clk 0:01:56.5]} 19. Rxe7 {[%clk 0:01:27.8]}
19... Rad8 {[%clk 0:01:47.2]} 20. Rae1 {[%clk 0:01:25.1]} 20... Rd7 {[%clk
0:01:46.8]} 21. Rxd7 {[%clk 0:00:45.8]} 21... Qxd7 {[%clk 0:01:46.3]} 22. Qxh4
{[%clk 0:00:47.7]} 22... Re8 {[%clk 0:01:33.9]} 23. Rf1 {[%clk 0:00:46.9]} 23...
Bd3 {[%clk 0:01:31.9]} 24. Rd1 {[%clk 0:00:46.3]} 24... Bc2 {[%clk 0:01:26.6]}
25. Rf1 {[%clk 0:00:27]} 25... Qf5 {[%clk 0:01:27.1]} 26. h3 {[%clk 0:00:26]}
26... Qg5 {[%clk 0:01:27.9]} 27. Qxg5 {[%clk 0:00:21.8]} 27... hxg5 {[%clk
0:01:29.8]} 28. Rc1 {[%clk 0:00:22.8]} 28... Bd3 {[%clk 0:01:30.5]} 29. Nd5
{[%clk 0:00:23.3]} 29... Re2 {[%clk 0:01:23]} 30. Rc8+ {[%clk 0:00:22.2]} 30...
Kh7 {[%clk 0:01:24.1]} 31. b3 {[%clk 0:00:20.4]} 31... Bd4 {[%clk 0:01:23.7]}
32. Rc7+ {[%clk 0:00:18.7]} 32... Kh6 {[%clk 0:01:24.5]} 33. Rxb7 {[%clk
0:00:18.7]} 33... Re1+ {[%clk 0:01:22.6]} 34. Kh2 {[%clk 0:00:19]} 34... Bxf2
{[%clk 0:01:24.5]} 35. g4 {[%clk 0:00:10.9]} 35... Bg3+ {[%clk 0:01:24.8]} 36.
Kg2 {[%clk 0:00:12.8]} 36... Be4# {[%clk 0:01:26.4]} 0-1

[Event "*** Titled Tuesday Blitz"]
[Site "Chess.com"]
[Date "2019.10.01"]
[Round "1"]
[White "WorldChampionBulletChess"]
[Black "Vlad_Lukiianchuk"]
[Result "0-1"]
[WhiteElo "2115"]
[BlackElo "2549"]
[TimeControl "180+2"]
[EndTime "13:07:00 PDT"]
[Termination "Vlad_Lukiianchuk won by resignation"]

1. d4 {[%clk 0:03:00]} 1... Nf6 {[%clk 0:03:00.7]} 2. c4 {[%clk 0:03:01.9]} 2...
g6 {[%clk 0:03:01.9]} 3. Nc3 {[%clk 0:03:02.5]} 3... Bg7 {[%clk 0:03:02.5]} 4.
e4 {[%clk 0:03:04.1]} 4... d6 {[%clk 0:03:03.3]} 5. f3 {[%clk 0:03:05.1]} 5...
c6 {[%clk 0:03:02.9]} 6. Be3 {[%clk 0:02:52.7]} 6... a6 {[%clk 0:03:03.1]} 7.
Bd3 {[%clk 0:02:50.7]} 7... b5 {[%clk 0:03:03]} 8. Nge2 {[%clk 0:02:51.8]} 8...
Nbd7 {[%clk 0:03:02.2]} 9. Qd2 {[%clk 0:02:45.4]} 9... Rb8 {[%clk 0:02:48.6]}
10. O-O {[%clk 0:02:39.3]} 10... O-O {[%clk 0:02:45.6]} 11. b3 {[%clk
0:02:35.5]} 11... Re8 {[%clk 0:02:43.1]} 12. f4 {[%clk 0:02:35]} 12... Ng4
{[%clk 0:02:01.7]} 13. e5 {[%clk 0:02:29]} 13... bxc4 {[%clk 0:01:15]} 14. bxc4
{[%clk 0:02:28.2]} 14... c5 {[%clk 0:01:14.5]} 15. h3 {[%clk 0:02:12]} 15...
Nxe3 {[%clk 0:01:13.7]} 16. Qxe3 {[%clk 0:02:13.9]} 16... cxd4 {[%clk
0:01:13.4]} 17. Nxd4 {[%clk 0:02:13.9]} 17... dxe5 {[%clk 0:00:50.8]} 18. Nc6
{[%clk 0:02:13]} 18... Qc7 {[%clk 0:00:51.5]} 19. Nxb8 {[%clk 0:02:11.9]} 19...
exf4 {[%clk 0:00:49.3]} 20. Qd2 {[%clk 0:02:04.5]} 20... Qxb8 {[%clk 0:00:46.9]}
21. Rab1 {[%clk 0:02:04.5]} 21... Qa7+ {[%clk 0:00:40.1]} 22. Kh1 {[%clk
0:02:04.3]} 22... Nc5 {[%clk 0:00:40.6]} 23. Bc2 {[%clk 0:02:01.5]} 23... g5
{[%clk 0:00:28.4]} 24. Nd5 {[%clk 0:01:38.8]} 24... e6 {[%clk 0:00:28.4]} 25.
Nb6 {[%clk 0:01:31.7]} 25... Bb7 {[%clk 0:00:29.3]} 26. Nd7 {[%clk 0:01:30.6]}
26... Nxd7 {[%clk 0:00:28.8]} 27. Qd3 {[%clk 0:01:30.5]} 27... Nf6 {[%clk
0:00:28.3]} 28. c5 {[%clk 0:01:27.9]} 28... Be4 {[%clk 0:00:27.7]} 29. Qc4
{[%clk 0:01:24.6]} 29... Bd5 {[%clk 0:00:21.1]} 30. Qa4 {[%clk 0:01:24.3]} 30...
Qxc5 {[%clk 0:00:19.9]} 31. Bd3 {[%clk 0:01:14.9]} 31... Qe3 {[%clk 0:00:19.6]}
32. Bxa6 {[%clk 0:01:10.8]} 32... Qxh3+ {[%clk 0:00:19.4]} 0-1

[Event "*** Titled Tuesday Blitz"]
[Site "Chess.com"]
[Date "2019.10.01"]
[Round "1"]
[White "Roman_Ovetchkin"]
[Black "Kozok"]
[Result "1-0"]
[WhiteElo "2660"]
[BlackElo "2297"]
[TimeControl "180+2"]
[EndTime "13:07:09 PDT"]
[Termination "Roman_Ovetchkin won by resignation"]

1. d4 {[%clk 0:03:00.7]} 1... Nf6 {[%clk 0:02:59.8]} 2. c4 {[%clk 0:02:59.6]}
2... e6 {[%clk 0:03:00.8]} 3. Nc3 {[%clk 0:02:58.8]} 3... d5 {[%clk 0:03:01.4]}
4. cxd5 {[%clk 0:02:58.9]} 4... exd5 {[%clk 0:03:01.7]} 5. Bg5 {[%clk
0:03:00.2]} 5... Bb4 {[%clk 0:03:02.7]} 6. e3 {[%clk 0:02:59.6]} 6... O-O {[%clk
0:03:01.3]} 7. Bd3 {[%clk 0:03:00.9]} 7... h6 {[%clk 0:03:00]} 8. Bh4 {[%clk
0:02:52.1]} 8... c5 {[%clk 0:03:00.9]} 9. Ne2 {[%clk 0:02:52.3]} 9... c4 {[%clk
0:03:02]} 10. Bc2 {[%clk 0:02:52.6]} 10... Re8 {[%clk 0:02:46.2]} 11. O-O {[%clk
0:02:53]} 11... g5 {[%clk 0:02:47.2]} 12. Bg3 {[%clk 0:02:53]} 12... Nc6 {[%clk
0:02:48.3]} 13. Nb5 {[%clk 0:02:06.5]} 13... Re7 {[%clk 0:02:28.8]} 14. a3
{[%clk 0:02:06.6]} 14... Ba5 {[%clk 0:02:29.7]} 15. b4 {[%clk 0:02:06.4]} 15...
Bb6 {[%clk 0:02:27.9]} 16. Nbc3 {[%clk 0:01:58.2]} 16... Kg7 {[%clk 0:02:04.4]}
17. Qd2 {[%clk 0:01:58.1]} 17... Bg4 {[%clk 0:01:55.5]} 18. f3 {[%clk
0:01:58.5]} 18... Bh5 {[%clk 0:01:55.9]} 19. b5 {[%clk 0:01:47.4]} 19... Na5
{[%clk 0:01:41.9]} 20. Be5 {[%clk 0:01:46.2]} 20... Bc7 {[%clk 0:01:37.7]} 21.
Ng3 {[%clk 0:01:31.4]} 21... Bg6 {[%clk 0:01:35.7]} 22. Bxc7 {[%clk 0:01:28]}
22... Qxc7 {[%clk 0:01:29.1]} 23. Rae1 {[%clk 0:01:28.6]} 23... Rae8 {[%clk
0:01:29.4]} 24. e4 {[%clk 0:01:25.9]} 24... Rd8 {[%clk 0:01:05.5]} 25. e5 {[%clk
0:01:25.8]} 25... Ne8 {[%clk 0:01:02.3]} 26. f4 {[%clk 0:01:24.5]} 26... f6
{[%clk 0:00:50.7]} 27. Bxg6 {[%clk 0:01:23.6]} 27... Kxg6 {[%clk 0:00:52.6]} 28.
Qc2+ {[%clk 0:01:24]} 28... Kf7 {[%clk 0:00:53.4]} 29. fxg5 {[%clk 0:01:24.2]}
29... hxg5 {[%clk 0:00:53.7]} 30. Qh7+ {[%clk 0:01:22.9]} 30... Ng7 {[%clk
0:00:55]} 31. Rxf6+ {[%clk 0:01:22]} 31... Ke8 {[%clk 0:00:56.2]} 32. e6 {[%clk
0:01:22.4]} 32... Nxe6 {[%clk 0:00:51.6]} 33. Qg6+ {[%clk 0:01:22.8]} 33... Kd7
{[%clk 0:00:51.8]} 34. Rfxe6 {[%clk 0:01:23.4]} 34... Qf4 {[%clk 0:00:31.9]} 35.
Rxe7+ {[%clk 0:01:20.4]} 35... Kc8 {[%clk 0:00:33.3]} 36. Qe6+ {[%clk
0:01:21.4]} 36... Kb8 {[%clk 0:00:34.9]} 37. Qe5+ {[%clk 0:01:15.1]} 1-0

[Event "*** Titled Tuesday Blitz"]
[Site "Chess.com"]
[Date "2019.10.01"]
[Round "1"]
[White "sergeikim"]
[Black "Bigfish1995"]
[Result "0-1"]
[WhiteElo "2487"]
[BlackElo "2989"]
[TimeControl "180+2"]
[EndTime "13:07:19 PDT"]
[Termination "Bigfish1995 won by resignation"]

1. d4 {[%clk 0:02:59.8]} 1... Nf6 {[%clk 0:02:59.9]} 2. c4 {[%clk 0:03:00.3]}
2... e6 {[%clk 0:03:01.1]} 3. Nc3 {[%clk 0:03:01.1]} 3... Bb4 {[%clk 0:03:02.1]}
4. Qc2 {[%clk 0:03:01.5]} 4... d5 {[%clk 0:02:51.6]} 5. a3 {[%clk 0:03:02]} 5...
Be7 {[%clk 0:02:50.8]} 6. Nf3 {[%clk 0:03:00.9]} 6... Nbd7 {[%clk 0:02:46.7]} 7.
cxd5 {[%clk 0:02:58]} 7... exd5 {[%clk 0:02:47.1]} 8. Bf4 {[%clk 0:02:58.4]}
8... c6 {[%clk 0:02:44.1]} 9. e3 {[%clk 0:02:59.2]} 9... Nh5 {[%clk 0:02:41.4]}
10. Bg3 {[%clk 0:02:56.5]} 10... Nxg3 {[%clk 0:02:35.8]} 11. hxg3 {[%clk
0:02:57.4]} 11... g6 {[%clk 0:02:28.7]} 12. Bd3 {[%clk 0:02:35.9]} 12... Nb6
{[%clk 0:02:07.8]} 13. O-O-O {[%clk 0:02:34.3]} 13... Bf6 {[%clk 0:02:04.8]} 14.
e4 {[%clk 0:02:26.7]} 14... Be6 {[%clk 0:02:03.9]} 15. e5 {[%clk 0:02:18.3]}
15... Bg7 {[%clk 0:02:02]} 16. Qd2 {[%clk 0:02:14.9]} 16... h6 {[%clk
0:01:47.1]} 17. Kb1 {[%clk 0:02:01.6]} 17... Qe7 {[%clk 0:01:47.8]} 18. Rc1
{[%clk 0:01:56.4]} 18... O-O-O {[%clk 0:01:47.2]} 19. Nb5 {[%clk 0:01:52.1]}
19... Kb8 {[%clk 0:01:48.3]} 20. Nxa7 {[%clk 0:01:45]} 20... Nc4 {[%clk
0:01:37.2]} 21. Bxc4 {[%clk 0:01:38.1]} 21... dxc4 {[%clk 0:01:38.3]} 22. Qa5
{[%clk 0:01:25.7]} 22... Qc7 {[%clk 0:01:39.1]} 23. Qa4 {[%clk 0:01:10]} 23...
Qb6 {[%clk 0:01:38.7]} 24. Nxc6+ {[%clk 0:00:54.8]} 24... Qxc6 {[%clk
0:01:32.5]} 25. Qa5 {[%clk 0:00:49.7]} 25... Rd5 {[%clk 0:01:31]} 26. Qc3 {[%clk
0:00:41.7]} 26... Rb5 {[%clk 0:01:28.5]} 27. Ka1 {[%clk 0:00:40.4]} 27... Qd5
{[%clk 0:01:27.3]} 28. Nd2 {[%clk 0:00:39.2]} 28... Rc8 {[%clk 0:01:27.4]} 29.
f3 {[%clk 0:00:35.5]} 29... f5 {[%clk 0:01:16.7]} 30. Rhe1 {[%clk 0:00:21]}
30... h5 {[%clk 0:01:14.9]} 31. Re2 {[%clk 0:00:14.4]} 31... Bh6 {[%clk
0:01:14.2]} 32. f4 {[%clk 0:00:13.9]} 32... Bf8 {[%clk 0:01:10]} 33. Qf3 {[%clk
0:00:11.6]} 33... Qxd4 {[%clk 0:01:09]} 0-1

[Event "*** Titled Tuesday Blitz"]
[Site "Chess.com"]
[Date "2019.10.01"]
[Round "1"]
[White "albano87"]
[Black "albi1999"]
[Result "0-1"]
[WhiteElo "2005"]
[BlackElo "2516"]
[TimeControl "180+2"]
[EndTime "13:07:29 PDT"]
[Termination "albi1999 won by resignation"]

1. e4 {[%clk 0:03:00.1]} 1... e5 {[%clk 0:03:00]} 2. Nf3 {[%clk 0:02:59.4]} 2...
Nc6 {[%clk 0:02:54.6]} 3. Nc3 {[%clk 0:03:00.7]} 3... Nf6 {[%clk 0:02:54.9]} 4.
Bb5 {[%clk 0:03:01.9]} 4... Bd6 {[%clk 0:02:54.9]} 5. O-O {[%clk 0:02:58.2]}
5... O-O {[%clk 0:02:56.3]} 6. a3 {[%clk 0:02:58.3]} 6... Re8 {[%clk 0:02:56.4]}
7. d3 {[%clk 0:02:59.2]} 7... a6 {[%clk 0:02:55.1]} 8. Bc4 {[%clk 0:02:59.6]}
8... h6 {[%clk 0:02:55.2]} 9. h3 {[%clk 0:02:58.4]} 9... Bc5 {[%clk 0:02:54.7]}
10. Be3 {[%clk 0:02:58.5]} 10... d6 {[%clk 0:02:52]} 11. Bxc5 {[%clk 0:02:58.4]}
11... dxc5 {[%clk 0:02:53.9]} 12. Nd5 {[%clk 0:02:55.6]} 12... Be6 {[%clk
0:02:49.7]} 13. Ne3 {[%clk 0:02:52.1]} 13... Nd4 {[%clk 0:02:46.9]} 14. c3
{[%clk 0:02:44.5]} 14... Nxf3+ {[%clk 0:02:42.9]} 15. Qxf3 {[%clk 0:02:45.1]}
15... Nd7 {[%clk 0:02:35.9]} 16. Rad1 {[%clk 0:02:39]} 16... b5 {[%clk
0:02:23.8]} 17. Bxe6 {[%clk 0:02:36.1]} 17... fxe6 {[%clk 0:02:23.9]} 18. d4
{[%clk 0:02:36]} 18... exd4 {[%clk 0:02:22.9]} 19. cxd4 {[%clk 0:02:37]} 19...
cxd4 {[%clk 0:02:15.6]} 20. Rxd4 {[%clk 0:02:37.5]} 20... Ne5 {[%clk 0:02:16.9]}
21. Qd1 {[%clk 0:02:33.9]} 21... Qe7 {[%clk 0:02:14.1]} 22. f4 {[%clk
0:02:32.1]} 22... Nc6 {[%clk 0:02:14.8]} 23. Rd7 {[%clk 0:02:32.4]} 23... Qc5
{[%clk 0:02:14.7]} 24. Re1 {[%clk 0:02:30.7]} 24... Rad8 {[%clk 0:02:14.2]} 25.
Kh2 {[%clk 0:02:27.3]} 25... Qf8 {[%clk 0:02:04.3]} 26. f5 {[%clk 0:02:19.1]}
26... Ne5 {[%clk 0:02:00.2]} 27. Rxd8 {[%clk 0:02:19]} 27... Rxd8 {[%clk
0:02:02.1]} 28. Qb3 {[%clk 0:02:20.2]} 28... Qd6 {[%clk 0:01:50.3]} 29. Qxe6+
{[%clk 0:02:03.8]} 29... Qxe6 {[%clk 0:01:50.3]} 30. fxe6 {[%clk 0:02:05.6]}
30... g6 {[%clk 0:01:48.9]} 31. Nd5 {[%clk 0:02:00.2]} 31... c6 {[%clk
0:01:45.5]} 32. Nc7 {[%clk 0:01:59.1]} 32... Kf8 {[%clk 0:01:39.5]} 33. Nxa6
{[%clk 0:01:49.7]} 33... Ke7 {[%clk 0:01:40.1]} 34. Re2 {[%clk 0:01:46.9]} 34...
Kxe6 {[%clk 0:01:38.5]} 35. Nc5+ {[%clk 0:01:47.8]} 35... Ke7 {[%clk 0:01:39.8]}
36. Rc2 {[%clk 0:01:44.1]} 36... h5 {[%clk 0:01:38]} 37. Kg3 {[%clk 0:01:42.2]}
37... Rd1 {[%clk 0:01:34.1]} 38. Kf4 {[%clk 0:01:27.9]} 38... Kf6 {[%clk
0:01:33.7]} 39. Ke3 {[%clk 0:01:27.6]} 39... Nc4+ {[%clk 0:01:30.2]} 40. Kf2
{[%clk 0:01:27.8]} 40... Ke5 {[%clk 0:01:29.1]} 41. Re2 {[%clk 0:01:24.4]} 41...
Kd4 {[%clk 0:01:23.8]} 42. Ne6+ {[%clk 0:01:23.4]} 42... Ke5 {[%clk 0:01:20.5]}
43. Nf8 {[%clk 0:01:24.4]} 43... Rd6 {[%clk 0:01:20]} 44. Kg3 {[%clk 0:01:20.2]}
44... Nd2 {[%clk 0:01:18.2]} 45. Re3 {[%clk 0:01:05.6]} 45... Nxe4+ {[%clk
0:01:14.9]} 46. Kf3 {[%clk 0:01:06.6]} 46... Rf6+ {[%clk 0:01:15.6]} 47. Ke2
{[%clk 0:01:06.6]} 47... Rxf8 {[%clk 0:01:16.2]} 0-1